fUSD/lending_fUSD_20240712
["ID","MTS","AMOUNT","RATE_DAILY","PERIOD"]
[331885170,1720816243813,-500.0,0.00013878,2]
[331885171,1720816243823,-500.0,0.00013878,2]
[331885172,1720816243834,-500.0,0.00013878,2]
[331885173,1720816243844,-500.0,0.00013878,2]
[331885174,1720816243856,-736.11,0.00013878,2]
[331885176,1720816243865,-500.0,0.00013878,2]
[331885177,1720816243878,-484.93414656,0.00013878,2]
[331885179,1720816243887,-500.0,0.00013878,2]
[331885181,1720816243896,-629.62347709,0.00013878,2]
[331885183,1720816243905,-976.89,0.00013878,2]
[331885185,1720816243915,-500.0,0.00013878,2]
[331885187,1720816243924,-151.0,0.00013878,2]
[331885189,1720816243933,-500.0,0.00013878,2]
[331885191,1720816243942,-251.526367,0.00013878,2]
[331885194,1720816243952,-500.0,0.00013878,2]
[331885195,1720816243961,-500.0,0.00013878,2]
[331885197,1720816243971,-251.526367,0.00013878,2]
[331885199,1720816243980,-697.61,0.00013878,2]
[331885201,1720816243990,-382.105549,0.00013878,2]
[331885203,1720816243999,-500.0,0.00013878,2]
[331885205,1720816244008,-382.105549,0.00013878,2]
[331885207,1720816244018,-500.0,0.00013878,2]
[331885209,1720816244027,-500.0,0.00013878,2]
[331885211,1720816244037,-500.0,0.00013878,2]
[331885214,1720816244046,-500.0,0.00013878,2]
[331885215,1720816244056,-500.0,0.00013878,2]
[331885217,1720816244065,-500.0,0.00013878,2]
[331885219,1720816244074,-921.32,0.00013878,2]
[331885221,1720816244083,-500.0,0.00013878,2]
[331885223,1720816244092,-500.0,0.00013878,2]
[331885225,1720816244102,-151.0,0.00013878,2]
[331885227,1720816244112,-150.0,0.0001388,2]
[331885229,1720816244121,-18001.08424293,0.0001388,2]
[331885231,1720816244130,-3960.5705,0.0001388,2]
[331885233,1720816244140,-789.45308619,0.00013889,2]
[331885236,1720816244151,-286.36,0.00013892,2]
[331885238,1720816244163,-15869.7484578,0.00013894,2]
[331885239,1720816244171,-183.608263,0.00013898,2]
[331885241,1720816244181,-162.629351,0.00013898,2]
[331885243,1720816244190,-273.286831,0.00013898,2]
[331885245,1720816244199,-7934.87422892,0.00013899,2]
[331885247,1720816244208,-241.4064925,0.000139,2]
[331885249,1720816244217,-250.27753742,0.000139,2]
[331885251,1720816244226,-1000.0,0.000139,2]
[331885253,1720816244235,-164.34574227,0.000139,2]
[331885255,1720816244245,-17490.2808253,0.00013904,2]
[331885257,1720816244254,-500.0,0.00013904,2]
[331885259,1720816244262,-500.0,0.00013904,2]
[331885261,1720816244271,-571.42,0.00013904,2]
[331885263,1720816244280,-500.0,0.00013904,2]
[331885265,1720816244289,-500.0,0.00013904,2]
[331885266,1720816244298,-500.0,0.00013904,2]
[331885268,1720816244307,-500.0,0.00013904,2]
[331885270,1720816244317,-500.0,0.00013904,2]
[331885272,1720816244327,-600.56,0.00013904,2]
[331885275,1720816244338,-500.0,0.00013904,2]
[331885276,1720816244348,-500.0,0.00013904,2]
[331885278,1720816244358,-747.64,0.00013904,2]
[331885280,1720816244367,-726.22,0.00013904,2]
[331885282,1720816244376,-471.10696578,0.00013904,2]
[331885284,1720816244385,-500.0,0.00013904,2]
[331885286,1720816244394,-500.0,0.00013904,2]
[331885298,1720816244496,-224.35939975,0.00013904,2]
[331885300,1720816244506,-500.0,0.00013904,2]
[331885302,1720816244516,-500.0,0.00013904,2]
[331885304,1720816244525,-299.37,0.00013904,2]
[331885306,1720816244534,-500.0,0.00013904,2]
[331885308,1720816244543,-500.0,0.00013904,2]
[331885310,1720816244552,-500.0,0.00013904,2]
[331885312,1720816244562,-500.0,0.00013904,2]
[331885314,1720816244571,-574.79,0.00013904,2]
[331885316,1720816244581,-500.0,0.00013904,2]
[331885318,1720816244590,-500.0,0.00013904,2]
[331885320,1720816244601,-500.0,0.00013904,2]
[331885322,1720816244610,-768.05,0.00013904,2]
[331885324,1720816244619,-500.0,0.00013904,2]
[331885326,1720816244629,-662.69,0.00013904,2]
[331885328,1720816244638,-500.0,0.00013904,2]
[331885330,1720816244648,-455.55965745,0.00013904,2]
[331885332,1720816244657,-500.0,0.00013904,2]
[331885334,1720816244666,-765.29,0.00013904,2]
[331885335,1720816244675,-507.25,0.00013904,2]
[331885337,1720816244684,-726.72,0.00013904,2]
[331885339,1720816244694,-500.0,0.00013904,2]
[331885342,1720816244703,-500.0,0.00013904,2]
[331885344,1720816244713,-800.6,0.00013904,2]
[331885346,1720816244723,-500.0,0.00013904,2]
[331885348,1720816244732,-744.62,0.00013904,2]
[331885350,1720816244741,-500.0,0.00013904,2]
[331885352,1720816244751,-500.0,0.00013904,2]
[331885354,1720816244760,-772.9,0.00013904,2]
[331885355,1720816244770,-500.0,0.00013904,2]
[331885357,1720816244779,-500.0,0.00013904,2]
[331885360,1720816244792,-850.33,0.00013904,2]
[331885362,1720816244802,-529.97,0.00013904,2]
[331885364,1720816244811,-500.0,0.00013904,2]
[331885366,1720816244821,-500.0,0.00013904,2]
[331885368,1720816244831,-500.0,0.00013904,2]
[331885370,1720816244841,-500.0,0.00013904,2]
[331885372,1720816244852,-500.0,0.00013904,2]
[331885374,1720816244863,-500.0,0.00013904,2]
[331885376,1720816244873,-500.0,0.00013904,2]
[331885378,1720816244882,-500.0,0.00013904,2]
[331885380,1720816244893,-646.63,0.00013904,2]
[331885382,1720816244902,-500.0,0.00013904,2]
[331885384,1720816244912,-632.28,0.00013904,2]
[331885386,1720816244922,-500.0,0.00013904,2]
[331885387,1720816244931,-500.0,0.00013904,2]
[331885389,1720816244941,-500.0,0.00013904,2]
[331885391,1720816244950,-500.0,0.00013904,2]
[331885393,1720816244959,-500.0,0.00013904,2]
[331885395,1720816244970,-500.0,0.00013904,2]
[331885397,1720816244979,-500.0,0.00013904,2]
[331885399,1720816244989,-600.67,0.00013904,2]
[331885401,1720816244998,-150.0,0.00013906,2]
[331885403,1720816245009,-500.0,0.00013909,2]
[331885405,1720816245019,-500.0,0.00013909,2]
[331885407,1720816245028,-500.0,0.00013909,2]
[331885409,1720816245038,-500.0,0.00013909,2]
[331885411,1720816245047,-500.0,0.00013909,2]
[331885413,1720816245058,-500.0,0.00013909,2]
[331885415,1720816245067,-605.849634,0.00013909,2]
[331885417,1720816245077,-500.0,0.00013909,2]
[331885419,1720816245086,-500.0,0.00013909,2]
[331885421,1720816245095,-600.9,0.00013909,2]
[331885423,1720816245106,-648.57,0.00013909,2]
[331885425,1720816245115,-500.0,0.00013909,2]
[331885427,1720816245125,-500.0,0.00013909,2]
[331885429,1720816245134,-500.0,0.00013909,2]
[331885431,1720816245144,-500.0,0.00013909,2]
[331885433,1720816245153,-500.0,0.00013909,2]
[331885435,1720816245163,-500.0,0.00013909,2]
[331885437,1720816245173,-500.0,0.00013909,2]
[331885439,1720816245182,-500.0,0.00013909,2]
[331885441,1720816245191,-500.0,0.00013909,2]
[331885443,1720816245201,-500.0,0.00013909,2]
[331885445,1720816245211,-500.0,0.00013909,2]
[331885447,1720816245221,-500.0,0.00013909,2]
[331885449,1720816245230,-841.45,0.00013909,2]
[331885452,1720816245249,-500.0,0.00013909,2]
[331885454,1720816245267,-1452.98,0.00013909,2]
[331885457,1720816245283,-904.0,0.00013909,2]
[331885460,1720816245303,-500.0,0.00013909,2]
[331885463,1720816245321,-500.0,0.00013909,2]
[331885466,1720816245339,-1020.38,0.00013909,2]
[331885469,1720816245356,-500.0,0.00013909,2]
[331885471,1720816245373,-527.33,0.00013909,2]
[331885474,1720816245387,-500.0,0.00013909,2]
[331885476,1720816245403,-500.0,0.00013909,2]
[331885480,1720816245420,-1254.68,0.00013909,2]
[331885484,1720816245438,-500.0,0.00013909,2]
[331885488,1720816245454,-500.0,0.00013909,2]
[331885492,1720816245466,-500.0,0.00013909,2]
[331885497,1720816245483,-500.0,0.00013909,2]
[331885503,1720816245497,-500.0,0.00013909,2]
[331885507,1720816245513,-500.0,0.00013909,2]
[331885513,1720816245527,-577.72,0.00013909,2]
[331885516,1720816245539,-500.0,0.00013909,2]
[331885520,1720816245552,-500.0,0.00013909,2]
[331885524,1720816245566,-525.35,0.00013909,2]
[331885527,1720816245579,-500.0,0.00013909,2]
[331885531,1720816245593,-500.0,0.00013909,2]
[331885533,1720816245608,-500.0,0.00013909,2]
[331885536,1720816245624,-500.0,0.00013909,2]
[331885538,1720816245638,-500.0,0.00013909,2]
[331885541,1720816245653,-150.0,0.00013911,2]
[331885543,1720816245667,-1004.81,0.00013914,2]
[331885546,1720816245681,-500.0,0.00013914,2]
[331885548,1720816245696,-523.01,0.00013914,2]
[331885551,1720816245709,-500.0,0.00013914,2]
[331885553,1720816245723,-899.22,0.00013914,2]
[331885556,1720816245737,-500.0,0.00013914,2]
[331885558,1720816245751,-1671.18,0.00013914,2]
[331885561,1720816245765,-500.0,0.00013914,2]
[331885563,1720816245780,-500.0,0.00013914,2]
[331885566,1720816245797,-671.63,0.00013914,2]
[331885568,1720816245812,-500.0,0.00013914,2]
[331885571,1720816245826,-500.0,0.00013914,2]
[331885573,1720816245840,-4328.2,0.00013914,2]
[331885575,1720816245855,-921.56,0.00013914,2]
[331885578,1720816245870,-31739.4969157,0.00013923,2]
[331885580,1720816245884,-17490.2808253,0.00013923,2]
[331885582,1720816245898,-151.0,0.00013923,2]
[331885585,1720816245912,-151.0,0.00013923,2]
[331885587,1720816245926,-206.246367,0.00013923,2]
[331885590,1720816245941,-206.246367,0.00013923,2]
[331885592,1720816245954,-184.749076,0.00013923,2]
[331885595,1720816245968,-151.0,0.00013923,2]
[331885597,1720816245983,-184.749076,0.00013923,2]
[331885599,1720816245997,-151.0,0.00013923,2]
[331885601,1720816246010,-151.0,0.00013923,2]
[331885603,1720816246024,-151.0,0.00013923,2]
[331885606,1720816246038,-151.0,0.00013923,2]
[331885608,1720816246051,-151.0,0.00013923,2]
[331885611,1720816246066,-151.0,0.00013923,2]
[331885613,1720816246079,-251.526367,0.00013923,2]
[331885615,1720816246093,-251.526367,0.00013923,2]
[331885618,1720816246109,-382.105549,0.00013923,2]
[331885621,1720816246123,-382.105549,0.00013923,2]
[331885623,1720816246137,-151.0,0.00013923,2]
[331885625,1720816246152,-500.0,0.00013933,2]
[331885627,1720816246165,-500.0,0.00013933,2]
[331885630,1720816246179,-500.0,0.00013933,2]
[331885632,1720816246194,-500.0,0.00013933,2]
[331885635,1720816246208,-500.0,0.00013933,2]
[331885637,1720816246223,-500.0,0.00013933,2]
[331885639,1720816246237,-397.12,0.00013933,2]
[331885642,1720816246252,-500.0,0.00013933,2]
[331885644,1720816246267,-500.0,0.00013933,2]
[331885647,1720816246283,-500.0,0.00013933,2]
[331885649,1720816246298,-500.0,0.00013933,2]
[331885652,1720816246313,-500.0,0.00013933,2]
[331885654,1720816246324,-500.0,0.00013933,2]
[331885656,1720816246336,-500.0,0.00013933,2]
[331885658,1720816246346,-500.0,0.00013933,2]
[331885660,1720816246357,-500.0,0.00013933,2]
[331885662,1720816246366,-500.0,0.00013933,2]
[331885682,1720816246516,-500.0,0.00013933,2]
[331885686,1720816246592,-500.0,0.00013933,2]
[331885688,1720816246604,-500.0,0.00013933,2]
[331885690,1720816246614,-500.0,0.00013933,2]
[331885692,1720816246624,-520.23,0.00013933,2]
[331885694,1720816246633,-509.09,0.00013933,2]
[331885696,1720816246643,-500.0,0.00013933,2]
[331885698,1720816246652,-500.0,0.00013933,2]
[331885700,1720816246662,-500.0,0.00013933,2]
[331885702,1720816246671,-500.0,0.00013933,2]
[331885704,1720816246681,-500.0,0.00013933,2]
[331885706,1720816246691,-546.99,0.00013933,2]
[331885708,1720816246700,-277.97404003,0.00013933,2]
[331885710,1720816246710,-500.0,0.00013933,2]
[331885712,1720816246719,-500.0,0.00013933,2]
[331885714,1720816246729,-500.0,0.00013933,2]
[331885716,1720816246739,-500.0,0.00013933,2]
[331885718,1720816246748,-500.0,0.00013933,2]
[331885720,1720816246758,-500.0,0.00013933,2]
[331885722,1720816246767,-500.0,0.00013933,2]
[331885724,1720816246777,-500.0,0.00013933,2]
[331885726,1720816246789,-500.0,0.00013933,2]
[331885728,1720816246799,-500.0,0.00013933,2]
[331885730,1720816246808,-500.0,0.00013933,2]
[331885732,1720816246818,-500.0,0.00013933,2]
[331885734,1720816246827,-500.0,0.00013933,2]
[331885736,1720816246836,-194.27673861,0.00013933,2]
[331885738,1720816246845,-500.0,0.00013933,2]
[331885740,1720816246856,-500.0,0.00013933,2]
[331885742,1720816246868,-500.0,0.00013933,2]
[331885744,1720816246877,-303.72576031,0.00013933,2]
[331885746,1720816246887,-500.0,0.00013933,2]
[331885748,1720816246897,-500.0,0.00013933,2]
[331885750,1720816246906,-500.0,0.00013933,2]
[331885752,1720816246916,-500.0,0.00013933,2]
[331885754,1720816246925,-500.0,0.00013933,2]
[331885756,1720816246935,-500.0,0.00013933,2]
[331885758,1720816246945,-500.0,0.00013933,2]
[331885760,1720816246954,-500.0,0.00013933,2]
[331885762,1720816246964,-500.0,0.00013933,2]
[331885764,1720816246973,-500.0,0.00013933,2]
[331885766,1720816246984,-500.0,0.00013933,2]
[331885768,1720816246994,-500.0,0.00013933,2]
[331885770,1720816247004,-500.0,0.00013933,2]
[331885772,1720816247014,-500.0,0.00013933,2]
[331885774,1720816247023,-500.0,0.00013933,2]
[331885775,1720816247033,-710.58,0.00013933,2]
[331885776,1720816247043,-500.0,0.00013933,2]
[331885777,1720816247052,-500.0,0.00013933,2]
[331885778,1720816247062,-500.0,0.00013933,2]
[331885779,1720816247072,-500.0,0.00013933,2]
[331885780,1720816247082,-500.0,0.00013933,2]
[331885781,1720816247092,-500.0,0.00013933,2]
[331885782,1720816247102,-500.0,0.00013933,2]
[331885783,1720816247112,-500.0,0.00013933,2]
[331885784,1720816247121,-500.0,0.00013933,2]
[331885785,1720816247131,-500.0,0.00013933,2]
[331885786,1720816247139,-500.0,0.00013933,2]
[331885787,1720816247149,-500.0,0.00013933,2]
[331885788,1720816247158,-500.0,0.00013933,2]
[331885789,1720816247167,-500.0,0.00013933,2]
[331885791,1720816247178,-500.0,0.00013933,2]
[331885793,1720816247187,-500.0,0.00013933,2]
[331885795,1720816247196,-504.5352089,0.00013933,2]
[331885797,1720816247205,-500.0,0.00013933,2]
[331885799,1720816247215,-500.0,0.00013933,2]
[331885801,1720816247225,-500.0,0.00013933,2]
[331885803,1720816247234,-500.0,0.00013933,2]
[331885805,1720816247244,-500.0,0.00013933,2]
[331885807,1720816247254,-500.0,0.00013933,2]
[331885809,1720816247263,-500.0,0.00013933,2]
[331885811,1720816247272,-500.0,0.00013933,2]
[331885813,1720816247282,-500.0,0.00013933,2]
[331885815,1720816247292,-500.0,0.00013933,2]
[331885817,1720816247302,-580.2,0.00013933,2]
[331885819,1720816247311,-944.22,0.00013933,2]
[331885821,1720816247320,-500.0,0.00013933,2]
[331885823,1720816247330,-752.67,0.00013933,2]
[331885825,1720816247339,-505.0,0.00013933,2]
[331885827,1720816247349,-500.0,0.00013933,2]
[331885829,1720816247362,-500.0,0.00013933,2]
[331885831,1720816247372,-500.0,0.00013933,2]
[331885833,1720816247381,-500.0,0.00013933,2]
[331885835,1720816247391,-500.0,0.00013933,2]
[331885837,1720816247400,-500.0,0.00013933,2]
[331885839,1720816247410,-500.0,0.00013933,2]
[331885841,1720816247419,-500.0,0.00013933,2]
[331885843,1720816247429,-736.11,0.00013933,2]
[331885845,1720816247438,-500.0,0.00013933,2]
[331885847,1720816247447,-500.0,0.00013933,2]
[331885849,1720816247458,-976.89,0.00013933,2]
[331885851,1720816247467,-500.0,0.00013933,2]
[331885853,1720816247477,-500.0,0.00013933,2]
[331885855,1720816247487,-500.0,0.00013933,2]
[331885857,1720816247496,-500.0,0.00013933,2]
[331885859,1720816247505,-697.61,0.00013933,2]
[331885861,1720816247514,-255.23799751,0.00013933,2]
[331885863,1720816247524,-500.0,0.00013933,2]
[331885865,1720816247533,-500.0,0.00013933,2]
[331885867,1720816247542,-500.0,0.00013933,2]
[331885869,1720816247552,-500.0,0.00013933,2]
[331885871,1720816247561,-500.0,0.00013933,2]
[331885873,1720816247570,-500.0,0.00013933,2]
[331885875,1720816247579,-921.32,0.00013933,2]
[331885877,1720816247589,-500.0,0.00013933,2]
[331885879,1720816247598,-500.0,0.00013933,2]
[331885881,1720816247608,-301.19357159,0.00013935,2]
[331885883,1720816247617,-7934.87422892,0.00013943,2]
[331885885,1720816247627,-17490.2808253,0.00013943,2]
[331885887,1720816247636,-15869.7484578,0.00013949,2]
[331885889,1720816247645,-17490.2808253,0.00013949,2]
[331885891,1720816247655,-1090.761,0.00013953,2]
[331885893,1720816247664,-2375.0,0.00013953,2]
[331885895,1720816247673,-7934.87422892,0.00013958,2]
[331885897,1720816247683,-233.48208,0.00013958,2]
[331885899,1720816247692,-251.526367,0.00013958,2]
[331885901,1720816247702,-251.526367,0.00013958,2]
[331885903,1720816247712,-382.105549,0.00013958,2]
[331885905,1720816247723,-382.105549,0.00013958,2]
[331885907,1720816247733,-194.990158,0.00013958,2]
[331885909,1720816247744,-15869.7484578,0.00013958,2]
[331885911,1720816247753,-17490.2808253,0.00013958,2]
[331885913,1720816247762,-15869.7484578,0.00013959,2]
[331885915,1720816247771,-17490.2808253,0.00013959,2]
[331885917,1720816247781,-500.0,0.00013959,2]
[331885918,1720816247791,-500.0,0.00013959,2]
[331885920,1720816247803,-571.42,0.00013959,2]
[331885922,1720816247813,-500.0,0.00013959,2]
[331885924,1720816247822,-599.51679835,0.00013959,2]
[331885926,1720816247832,-500.0,0.00013959,2]
[331885928,1720816247842,-500.0,0.00013959,2]
[331885930,1720816247854,-500.0,0.00013959,2]
[331885932,1720816247865,-600.56,0.00013959,2]
[331885934,1720816247876,-500.0,0.00013959,2]
[331885936,1720816247887,-500.0,0.00013959,2]
[331885938,1720816247897,-747.64,0.00013959,2]
[331885940,1720816247906,-726.22,0.00013959,2]
[331885942,1720816247916,-500.0,0.00013959,2]
[331885944,1720816247926,-500.0,0.00013959,2]
[331885946,1720816247935,-500.0,0.00013959,2]
[331885948,1720816247945,-500.0,0.00013959,2]
[331885950,1720816247955,-299.37,0.00013959,2]
[331885952,1720816247964,-500.0,0.00013959,2]
[331885954,1720816247974,-500.0,0.00013959,2]
[331885956,1720816247984,-500.0,0.00013959,2]
[331885958,1720816247994,-500.0,0.00013959,2]
[331885960,1720816248004,-574.79,0.00013959,2]
[331885962,1720816248014,-500.0,0.00013959,2]
[331885964,1720816248023,-500.0,0.00013959,2]
[331885966,1720816248033,-500.0,0.00013959,2]
[331885968,1720816248042,-768.05,0.00013959,2]
[331885970,1720816248052,-500.0,0.00013959,2]
[331885972,1720816248062,-662.69,0.00013959,2]
[331885974,1720816248072,-500.0,0.00013959,2]
[331885976,1720816248082,-500.0,0.00013959,2]
[331885979,1720816248092,-765.29,0.00013959,2]
[331885981,1720816248105,-507.25,0.00013959,2]
[331885982,1720816248115,-726.72,0.00013959,2]
[331885985,1720816248125,-500.0,0.00013959,2]
[331885987,1720816248136,-500.0,0.00013959,2]
[331885989,1720816248146,-800.6,0.00013959,2]
[331885991,1720816248156,-500.0,0.00013959,2]
[331885993,1720816248166,-744.62,0.00013959,2]
[331885995,1720816248176,-500.0,0.00013959,2]
[331885997,1720816248186,-151.0,0.00013959,2]
[331885999,1720816248196,-500.0,0.00013959,2]
[331886001,1720816248205,-772.9,0.00013959,2]
[331886003,1720816248216,-151.0,0.00013959,2]
[331886005,1720816248226,-500.0,0.00013959,2]
[331886007,1720816248235,-151.0,0.00013959,2]
[331886009,1720816248244,-151.0,0.00013959,2]
[331886011,1720816248254,-500.0,0.00013959,2]
[331886012,1720816248263,-151.0,0.00013959,2]
[331886014,1720816248273,-151.0,0.00013959,2]
[331886016,1720816248282,-850.33,0.00013959,2]
[331886018,1720816248292,-529.97,0.00013959,2]
[331886020,1720816248302,-500.0,0.00013959,2]
[331886022,1720816248311,-500.0,0.00013959,2]
[331886024,1720816248320,-500.0,0.00013959,2]
[331886026,1720816248331,-500.0,0.00013959,2]
[331886028,1720816248341,-500.0,0.00013959,2]
[331886030,1720816248354,-500.0,0.00013959,2]
[331886032,1720816248363,-500.0,0.00013959,2]
[331886034,1720816248374,-500.0,0.00013959,2]
[331886037,1720816248384,-646.63,0.00013959,2]
[331886039,1720816248393,-500.0,0.00013959,2]
[331886041,1720816248402,-632.28,0.00013959,2]
[331886043,1720816248411,-500.0,0.00013959,2]
[331886045,1720816248420,-500.0,0.00013959,2]
[331886047,1720816248430,-500.0,0.00013959,2]
[331886049,1720816248439,-500.0,0.00013959,2]
[331886051,1720816248448,-500.0,0.00013959,2]
[331886053,1720816248458,-500.0,0.00013959,2]
[331886055,1720816248468,-500.0,0.00013959,2]
[331886057,1720816248477,-392.6396956,0.00013959,2]
[331886059,1720816248486,-600.67,0.00013959,2]
[331886061,1720816248496,-7934.87422892,0.00013959,2]
[331886063,1720816248506,-7934.87422892,0.0001396,2]
[331886065,1720816248515,-34980.5616506,0.0001396,2]
[331886067,1720816248525,-17490.2808253,0.0001396,2]
[331886069,1720816248534,-500.0,0.00013964,2]
[331886071,1720816248544,-500.0,0.00013964,2]
[331886073,1720816248554,-500.0,0.00013964,2]
[331886075,1720816248563,-500.0,0.00013964,2]
[331886077,1720816248573,-500.0,0.00013964,2]
[331886079,1720816248582,-500.0,0.00013964,2]
[331886081,1720816248592,-500.0,0.00013964,2]
[331886083,1720816248603,-500.0,0.00013964,2]
[331886085,1720816248612,-600.9,0.00013964,2]
[331886086,1720816248622,-648.57,0.00013964,2]
[331886089,1720816248632,-500.0,0.00013964,2]
[331886090,1720816248641,-500.0,0.00013964,2]
[331886092,1720816248650,-500.0,0.00013964,2]
[331886094,1720816248660,-500.0,0.00013964,2]
[331886096,1720816248669,-529.33305141,0.00013964,2]
[331886098,1720816248679,-500.0,0.00013964,2]
[331886100,1720816248688,-500.0,0.00013964,2]
[331886102,1720816248698,-500.0,0.00013964,2]
[331886104,1720816248707,-500.0,0.00013964,2]
[331886106,1720816248716,-500.0,0.00013964,2]
[331886108,1720816248725,-500.0,0.00013964,2]
[331886110,1720816248735,-500.0,0.00013964,2]
[331886112,1720816248744,-841.45,0.00013964,2]
[331886114,1720816248753,-500.0,0.00013964,2]
[331886116,1720816248763,-1452.98,0.00013964,2]
[331886118,1720816248772,-904.0,0.00013964,2]
[331886120,1720816248781,-500.0,0.00013964,2]
[331886122,1720816248792,-258.15254213,0.00013964,2]
[331886124,1720816248803,-1020.38,0.00013964,2]
[331886126,1720816248812,-500.0,0.00013964,2]
[331886128,1720816248821,-527.33,0.00013964,2]
[331886130,1720816248831,-500.0,0.00013964,2]
[331886132,1720816248840,-427.39,0.00013964,2]
[331886134,1720816248852,-1254.68,0.00013964,2]
[331886136,1720816248861,-500.0,0.00013964,2]
[331886138,1720816248870,-500.0,0.00013964,2]
[331886140,1720816248880,-500.0,0.00013964,2]
[331886142,1720816248889,-500.0,0.00013964,2]
[331886144,1720816248899,-500.0,0.00013964,2]
[331886146,1720816248908,-500.0,0.00013964,2]
[331886148,1720816248917,-577.72,0.00013964,2]
[331886150,1720816248927,-500.0,0.00013964,2]
[331886152,1720816248936,-525.35,0.00013964,2]
[331886154,1720816248945,-500.0,0.00013964,2]
[331886156,1720816248954,-500.0,0.00013964,2]
[331886158,1720816248963,-500.0,0.00013964,2]
[331886160,1720816248974,-500.0,0.00013964,2]
[331886162,1720816248983,-500.0,0.00013964,2]
[331886164,1720816248993,-17490.2808253,0.00013968,2]
[331886166,1720816249002,-151.0,0.00013968,2]
[331886168,1720816249012,-157.57858,0.00013968,2]
[331886170,1720816249021,-157.57858,0.00013968,2]
[331886172,1720816249031,-276.493208,0.00013968,2]
[331886174,1720816249041,-151.0,0.00013968,2]
[331886176,1720816249050,-151.0,0.00013968,2]
[331886178,1720816249059,-151.0,0.00013968,2]
[331886192,1720816249180,-151.0,0.00013968,2]
[331886195,1720816249199,-206.246367,0.00013968,2]
[331886197,1720816249210,-206.246367,0.00013968,2]
[331886199,1720816249219,-184.749076,0.00013968,2]
[331886201,1720816249229,-151.0,0.00013968,2]
[331886203,1720816249238,-184.749076,0.00013968,2]
[331886205,1720816249248,-151.0,0.00013968,2]
[331886207,1720816249257,-151.0,0.00013968,2]
[331886209,1720816249267,-151.0,0.00013968,2]
[331886211,1720816249276,-151.0,0.00013968,2]
[331886213,1720816249285,-151.0,0.00013968,2]
[331886215,1720816249295,-251.526367,0.00013968,2]
[331886217,1720816249303,-251.526367,0.00013968,2]
[331886219,1720816249312,-382.105549,0.00013968,2]
[331886221,1720816249322,-382.105549,0.00013968,2]
[331886223,1720816249331,-17490.2808253,0.00013968,2]
[331886225,1720816249341,-34980.5616506,0.00013969,2]
[331886227,1720816249351,-150.0,0.00013969,2]
[331886229,1720816249360,-1004.81,0.00013969,2]
[331886231,1720816249369,-500.0,0.00013969,2]
[331886233,1720816249378,-523.01,0.00013969,2]
[331886234,1720816249387,-151.0,0.00013969,2]
[331886236,1720816249397,-151.0,0.00013969,2]
[331886238,1720816249407,-500.0,0.00013969,2]
[331886240,1720816249416,-151.0,0.00013969,2]
[331886242,1720816249426,-222.556592,0.00013969,2]
[331886244,1720816249435,-151.0,0.00013969,2]